bitfinex/quotes_SOLUSD_20250822
["timestamp","ask_amount","ask_price","bid_price","bid_amount"]
[1755877938426,0.98432314,194.55,194.44,0.03]
[1755877938737,43.76,194.57,194.54,14.67728196]
[1755877938940,43.76,194.57,194.5,26.0]
[1755877938941,0.7,194.56,194.5,26.0]
[1755877939117,0.7,194.56,194.44,0.03]
[1755877939118,0.28432314,194.53,194.44,0.03]
[1755877939631,43.76,194.57,194.52,14.67728196]
[1755877939827,43.76,194.57,194.46,14.67728196]
[1755877939828,0.28432314,194.56,194.49,26.0]
[1755877940018,0.28432314,194.56,194.55,14.67728196]
[1755877940209,0.28432314,194.56,194.49,26.0]
[1755877940411,0.28432314,194.56,194.54,14.67728196]
[1755877940837,0.28432314,194.56,194.49,26.0]
[1755877941448,0.28432314,194.56,194.55,14.67728196]
[1755877941815,43.76,194.57,194.55,14.67728196]
[1755877942009,43.76,194.57,194.49,26.0]
[1755877942010,0.84216157,194.56,194.49,26.0]
[1755877942212,0.98432314,194.56,194.49,26.0]
[1755877942418,0.98432314,194.56,194.53,14.67728196]
[1755877942719,0.98432314,194.56,194.54,14.67728196]
[1755877943023,0.28432314,194.56,194.55,14.67728196]
[1755877943224,0.06,194.62,194.58,26.0]
[1755877943546,0.06,194.62,194.57,26.0]
[1755877944136,0.7,194.61,194.52,26.0]
[1755877944356,0.7,194.61,194.59,14.67728196]
[1755877944514,0.06,194.62,194.59,14.67728196]
[1755877944719,0.06,194.62,194.52,26.0]
[1755877944916,13.59559401,194.6,194.55,14.67728196]
[1755877945141,0.14216157,194.57,194.53,14.67728196]
[1755877945341,0.28432314,194.58,194.55,14.67728196]
[1755877945516,0.28432314,194.56,194.44,0.03]
[1755877946058,0.28432314,194.56,194.54,14.67728196]
[1755877946554,43.72,194.59,194.55,14.67728196]
[1755877946860,0.06,194.62,194.58,14.67728196]
[1755877947153,0.06,194.62,194.55,26.0]
[1755877947323,0.06,194.62,194.61,14.67728196]
[1755877947513,0.06,194.62,194.54,26.0]
[1755877947714,0.06,194.62,194.61,14.67728196]
[1755877948757,0.06,194.62,194.56,26.0]
[1755877948918,0.06,194.62,194.61,14.67728196]
[1755877951557,44.4,194.69,194.63,26.0]
[1755877951558,43.7,194.69,194.63,26.0]
[1755877951734,43.7,194.69,194.68,14.67728196]
[1755877952163,26.0,194.76,194.68,14.67728196]
[1755877952164,0.7,194.74,194.68,14.67728196]
[1755877952482,43.66,194.75,194.66,26.0]
[1755877952646,43.66,194.75,194.63,26.0]
[1755877952846,43.66,194.75,194.74,14.67728196]
[1755877953050,42.20727205,194.84,194.69,26.0]
[1755877953257,0.7,194.81,194.7,26.0]
[1755877953891,0.7,194.81,194.6,10.0]
[1755877953892,13.87991715,194.76,194.71,14.67728196]
[1755877954187,0.28432314,194.74,194.69,26.0]
[1755877954347,0.28432314,194.74,194.7,14.67728196]
[1755877954348,0.7,194.73,194.7,14.67728196]
[1755877954549,0.28432314,194.74,194.72,14.67728196]
[1755877954749,0.28432314,194.75,194.72,14.67728196]
[1755877954949,0.98432314,194.75,194.72,14.67728196]
[1755877955177,0.06,194.73,194.72,14.67728196]
[1755877956448,0.06,194.73,194.6,14.67728196]
[1755877956648,0.06,194.73,194.72,14.67728196]
[1755877957273,0.06,194.73,194.6,14.9616051]
[1755877957274,1.04432314,194.73,194.6,14.67728196]
[1755877957476,0.7,194.72,194.67,14.67728196]
[1755877957775,0.06,194.73,194.71,14.67728196]
[1755877957964,0.06,194.73,194.72,14.67728196]
[1755877958169,0.06,194.73,194.61,13.59559401]
[1755877958170,0.06,194.73,194.71,14.67728196]
[1755877958368,0.06,194.73,194.72,14.67728196]
[1755877959686,0.06,194.82,194.72,29.35456392]
[1755877959975,43.72,194.82,194.81,14.67728196]
[1755877960174,0.28432314,194.81,194.72,26.0]
[1755877960343,44.42,194.82,194.7,26.0]
[1755877960547,0.28432314,194.81,194.71,26.0]
[1755877960785,14.57991715,194.81,194.71,26.0]
[1755877960980,13.87991715,194.81,194.77,14.67728196]
[1755877961277,13.87991715,194.81,194.66,13.59559401]
[1755877961278,0.28432314,194.81,194.78,14.67728196]
[1755877961484,0.28432314,194.78,194.63,43.66]
[1755877961672,0.7,194.77,194.7,14.67728196]
[1755877961851,43.68,194.76,194.66,13.59559401]
[1755877962048,44.48,194.82,194.75,14.67728196]
[1755877962257,44.48,194.82,194.69,26.0]
[1755877962258,44.62216157,194.82,194.81,14.67728196]
[1755877962584,44.48,194.82,194.81,14.67728196]
[1755877962761,43.78,194.82,194.81,14.67728196]
[1755877963151,43.78,194.82,194.77,26.0]
[1755877963362,43.78,194.82,194.81,14.67728196]
[1755877963569,0.06,194.82,194.81,14.67728196]
[1755877963953,0.06,194.82,194.81,40.67728196]
[1755877964151,0.06,194.82,194.81,26.0]
[1755877964377,0.06,194.82,194.81,14.67728196]
[1755877964678,0.76,194.82,194.79,14.67728196]
[1755877964880,0.06,194.82,194.74,26.0]
[1755877965100,0.06,194.82,194.81,14.67728196]
[1755877966258,0.06,194.84,194.83,26.0]
[1755877966459,0.06,194.84,194.83,40.67728196]
[1755877967067,0.06,194.84,194.82,26.0]
[1755877967272,0.06,194.84,194.83,14.67728196]
[1755877967800,0.06,194.84,194.82,26.0]
[1755877967991,0.06,194.84,194.83,14.67728196]
[1755877970473,0.06,194.84,194.79,26.0]
[1755877970818,0.06,194.84,194.83,14.67728196]
[1755877971513,0.06,194.86,194.85,26.0]
[1755877971803,0.06,194.86,194.85,40.67728196]
[1755877973080,0.06,194.86,194.85,14.67728196]
[1755877973297,0.76,194.86,194.84,26.0]
[1755877973503,0.76,194.86,194.7,36.98]
[1755877973504,0.06,194.86,194.81,26.0]
[1755877973704,0.06,194.86,194.85,14.67728196]
[1755877974079,0.76,194.86,194.85,14.67728196]
[1755877975303,0.06,194.86,194.85,14.67728196]
[1755877975688,0.76,194.86,194.8,26.0]
[1755877975900,0.76,194.86,194.84,14.67728196]
[1755877976088,0.76,194.86,194.85,14.67728196]
[1755877976275,0.06,194.86,194.85,14.67728196]
[1755877976479,0.76,194.86,194.85,14.67728196]
[1755877976981,0.06,194.86,194.85,14.67728196]
[1755877978680,0.06,194.86,194.85,26.0]
[1755877978880,0.06,194.86,194.85,40.67728196]
[1755877979107,0.76,194.86,194.85,40.67728196]
[1755877980198,0.06,194.86,194.85,40.67728196]
[1755877980513,0.06,194.86,194.85,14.67728196]
[1755877980514,0.76,194.86,194.85,14.67728196]
[1755877980983,0.06,194.86,194.85,14.67728196]
[1755877982713,0.06,194.86,194.85,42.95015793]
[1755877982917,0.06,194.88,194.85,29.35456392]
[1755877983128,0.2,194.93,194.91,26.0]
[1755877983517,0.7,194.92,194.91,26.0]
[1755877983821,0.2,194.93,194.87,26.0]
[1755877984230,0.7,194.92,194.87,26.0]
[1755877984529,0.2,194.93,194.87,26.0]
[1755877984731,0.7,194.92,194.85,0.03]
[1755877984905,0.98432314,194.92,194.88,14.67728196]
[1755877985106,0.98432314,194.92,194.85,0.03]
[1755877985107,0.28432314,194.9,194.85,0.03]
[1755877985319,0.7,194.89,194.85,0.03]
[1755877985543,15.37728196,194.89,194.85,0.03]
[1755877985719,0.28432314,194.88,194.85,0.03]
[1755877985911,0.7,194.87,194.85,0.03]
[1755877986117,0.28432314,194.88,194.85,0.03]
[1755877986326,13.79559401,194.93,194.81,0.03]
[1755877986327,0.28432314,194.85,194.81,0.03]
[1755877986524,0.7,194.84,194.83,14.67728196]
[1755877986733,0.7,194.88,194.83,14.67728196]
[1755877986945,0.7,194.84,194.82,14.67728196]
[1755877987125,0.7,194.83,194.81,14.70728196]
[1755877987312,0.7,194.82,194.81,0.03]
[1755877987642,0.7,194.85,194.81,14.70728196]
[1755877987815,0.7,194.84,194.83,14.67728196]
[1755877988212,0.7,194.89,194.83,14.67728196]
[1755877988410,0.7,194.89,194.88,14.67728196]
[1755877988817,0.7,194.89,194.84,26.0]
[1755877988818,0.98432314,194.89,194.84,14.67728196]
[1755877989025,0.84216157,194.89,194.81,0.03]
[1755877989240,0.7,194.88,194.85,14.67728196]
[1755877989431,0.28432314,194.89,194.85,14.67728196]
[1755877989637,0.28432314,194.89,194.87,14.67728196]
[1755877989844,0.7,194.89,194.88,14.67728196]
[1755877990019,0.7,194.91,194.88,14.67728196]
[1755877990217,0.7,194.91,194.9,14.67728196]
[1755877990747,0.7,194.91,194.84,26.0]
[1755877991053,0.7,194.91,194.84,105.8]
[1755877991220,0.98432314,194.91,194.87,14.67728196]
[1755877991416,0.7,194.9,194.84,26.0]
[1755877991634,0.7,194.9,194.87,14.67728196]
[1755877991839,0.7,194.9,194.86,14.67728196]
[1755877992222,0.7,194.89,194.86,14.67728196]
[1755877992440,0.7,194.88,194.87,14.67728196]
[1755877992627,0.7,194.88,194.81,0.03]
[1755877992824,0.7,194.88,194.82,14.67728196]
[1755877993033,0.98432314,194.91,194.81,0.03]
[1755877993243,0.98432314,194.91,194.87,14.67728196]
[1755877993551,0.98432314,194.9,194.88,14.67728196]
[1755877993844,0.28432314,194.88,194.82,14.67728196]
[1755877994044,0.7,194.87,194.85,14.67728196]
[1755877994248,44.26,194.89,194.81,0.03]
[1755877994550,44.26,194.89,194.88,14.67728196]
[1755877995046,43.56,194.89,194.88,14.67728196]
[1755877995257,44.26,194.89,194.88,14.67728196]
[1755877995455,44.26,194.89,194.83,26.0]
[1755877995753,44.26,194.89,194.81,0.03]
[1755877995952,0.98432314,194.88,194.84,14.67728196]
[1755877996133,0.98432314,194.88,194.82,14.67728196]
[1755877996134,0.7,194.87,194.82,14.67728196]
[1755877996327,0.28432314,194.89,194.86,14.67728196]
[1755877996530,0.7,194.88,194.86,14.67728196]
[1755877996746,0.7,194.87,194.86,14.67728196]
[1755877997053,43.52,194.89,194.86,14.67728196]
[1755877997255,43.52,194.89,194.82,26.0]
[1755877997556,43.52,194.89,194.88,14.67728196]
[1755877997735,43.52,194.89,194.82,26.0]
[1755877997937,43.52,194.89,194.88,14.67728196]
[1755877999343,0.34432314,194.92,194.88,14.67728196]
[1755877999547,0.75,194.92,194.91,14.67728196]
[1755877999854,0.06,194.92,194.91,14.67728196]
[1755878000753,0.06,194.92,194.82,26.0]
[1755878000754,0.28432314,194.91,194.82,26.0]
[1755878001058,0.28432314,194.89,194.81,0.03]
[1755878001232,0.69,194.9,194.87,14.67728196]
[1755878001431,0.69,194.9,194.88,14.67728196]
[1755878001745,0.69,194.9,194.86,14.67728196]
[1755878002132,0.69,194.89,194.86,14.67728196]
[1755878002336,13.93991715,194.91,194.86,14.67728196]
[1755878002534,0.69,194.88,194.81,0.03]
[1755878002749,1.03432314,194.91,194.87,14.67728196]
[1755878003053,0.34432314,194.91,194.88,14.67728196]
[1755878003258,0.06,194.91,194.9,14.67728196]
[1755878004440,0.75,194.91,194.84,79.8]
[1755878004644,0.06,194.91,194.9,14.67728196]
[1755878004843,0.06,194.91,194.87,26.0]
[1755878005042,0.06,194.91,194.9,14.67728196]
[1755878005649,0.06,194.91,194.9,40.67728196]
[1755878007031,0.06,194.91,194.9,40.70728196]
[1755878007461,0.06,194.91,194.9,40.67728196]
[1755878009862,0.06,194.92,194.9,28.30287597]
[1755878010171,0.2,194.93,194.9,28.30287597]
[1755878010172,0.2,194.93,194.91,40.67728196]
[1755878010470,0.2,194.93,194.92,40.67728196]
[1755878010669,0.2,194.93,194.92,26.0]
[1755878010842,0.2,194.93,194.92,40.67728196]
[1755878011040,0.2,194.93,194.92,54.30287597]
[1755878011246,0.06,194.94,194.92,54.30287597]
[1755878011445,0.06,194.95,194.93,28.30287597]
[1755878011775,0.06,194.95,194.93,26.0]
[1755878012070,0.06,194.95,194.94,14.67728196]
[1755878012249,0.06,194.95,194.91,43.28]
[1755878012451,0.06,194.95,194.94,9.7315146]
[1755878012937,0.06,194.95,194.92,26.0]
[1755878013134,0.06,194.95,194.94,9.7315146]
[1755878013338,0.06,194.95,194.92,26.0]
[1755878013539,0.06,194.95,194.94,9.7315146]
[1755878015442,0.06,194.95,194.94,89.5315146]
[1755878016564,0.06,194.95,194.94,9.7315146]
[1755878019143,0.06,194.95,194.93,43.1]
[1755878019371,0.06,194.95,194.94,9.7315146]
[1755878019692,0.06,194.97,194.95,13.59559401]
[1755878019856,0.06,194.99,194.95,13.59559401]
[1755878019857,0.06,194.99,194.98,45.4630292]
[1755878020186,0.06,194.99,194.98,35.7315146]
[1755878020602,0.75,194.99,194.98,9.7315146]
[1755878020887,0.75,194.99,194.92,0.03]
[1755878021258,9.7315146,194.98,194.93,9.7315146]
[1755878021583,0.69,194.97,194.92,0.03]
[1755878021788,0.06,194.99,194.94,26.0]
[1755878021962,0.69,194.98,194.92,0.03]
[1755878022168,0.69,194.98,194.95,9.7315146]
[1755878022502,0.69,194.98,194.94,9.7315146]
[1755878022801,0.69,194.98,194.92,0.03]
[1755878022976,10.4215146,194.98,194.93,9.7315146]
[1755878023294,0.69,194.97,194.92,0.03]
[1755878023488,0.28432314,194.95,194.92,0.03]
[1755878023691,0.28432314,194.95,194.92,9.7615146]
[1755878023893,0.69,194.94,194.92,9.7615146]
[1755878024087,0.28432314,194.95,194.92,9.7615146]
[1755878024270,0.69,194.93,194.92,14.72408275]
[1755878024471,0.69,194.93,194.92,0.03]
[1755878024873,0.69,194.96,194.92,14.72408275]
[1755878025072,0.69,194.96,194.95,14.69408275]
[1755878025281,0.69,194.96,194.92,0.03]
[1755878025579,0.75,194.99,194.95,14.69408275]
[1755878025786,0.75,194.99,194.98,14.69408275]
[1755878026497,0.06,194.99,194.98,14.69408275]
[1755878028698,0.06,194.99,194.98,40.69408275]
[1755878032803,0.06,194.99,194.98,26.0]
[1755878033012,0.06,194.99,194.98,40.69408275]
[1755878033691,0.06,195.03,194.98,69.01375951]
[1755878033893,0.06,195.03,195.02,26.0]
[1755878034069,0.06,195.03,195.02,14.69408275]
[1755878036498,0.06,195.03,195.02,29.3881655]
[1755878036822,0.06,195.03,195.01,42.84]
[1755878037028,0.72,195.03,195.02,14.69408275]
[1755878037180,0.72,195.03,195.01,42.84]
[1755878037375,0.06,195.03,195.02,14.69408275]
[1755878038882,0.06,195.03,195.01,42.84]
[1755878039108,0.06,195.03,195.02,14.69408275]
[1755878039480,0.06,195.03,195.02,29.3881655]
[1755878040179,0.06,195.03,195.02,14.69408275]
[1755878040605,0.72,195.03,194.97,5.14028418]
[1755878040785,0.06,195.03,195.02,14.69408275]
[1755878040985,0.06,195.03,195.02,109.1881655]
[1755878041187,0.06,195.03,195.02,152.0281655]
[1755878041589,7.96942727,195.06,195.05,26.0]
[1755878041802,0.2,195.08,195.05,83.53408275]
[1755878042005,0.2,195.08,195.07,14.69408275]
[1755878042426,0.2,195.08,195.05,148.64]
[1755878042607,0.2,195.08,195.07,14.69408275]
[1755878043391,0.2,195.08,195.07,94.49408275]
[1755878043801,0.2,195.08,195.07,228.49408275]
[1755878044428,0.2,195.08,195.07,223.51766881]
[1755878044607,0.2,195.08,195.07,266.33766881]
[1755878044801,0.86,195.08,195.07,89.51766881]
[1755878045342,0.86,195.08,195.06,9.71766881]
[1755878045503,0.86,195.08,195.02,83.82833478]
[1755878045504,0.66,195.07,195.05,9.71766881]
[1755878045828,0.66,195.06,195.05,26.0]
[1755878046030,0.66,195.06,195.02,79.8]
[1755878046329,0.66,195.06,195.0,42.82]
[1755878046498,0.66,195.06,194.94,0.03]
[1755878046696,0.28432314,195.04,194.94,0.03]
[1755878046922,9.71766881,194.98,194.94,0.03]
[1755878047101,9.87766881,194.97,194.93,2.083651]
[1755878047307,10.00199195,194.96,194.93,0.03]
[1755878047829,0.28432314,194.96,194.92,0.03]
[1755878048297,0.28432314,194.95,194.92,9.74766881]
[1755878048504,0.28432314,194.95,194.92,0.03]
[1755878048852,9.71766881,195.0,194.92,0.03]
[1755878049007,0.28432314,194.99,194.97,9.71766881]
[1755878049333,0.28432314,195.0,194.96,9.71766881]
[1755878049497,0.28432314,195.0,194.94,26.0]
[1755878049701,0.28432314,195.0,194.96,9.71766881]
[1755878049702,0.66,194.99,194.96,9.71766881]
[1755878050121,0.28432314,195.0,194.96,9.71766881]
[1755878050322,0.66,194.98,194.96,9.71766881]
[1755878050528,0.66,194.97,194.96,9.71766881]
[1755878050834,0.66,195.03,194.96,9.71766881]
[1755878051029,0.66,195.03,195.02,9.71766881]
[1755878051328,8.13360891,195.06,195.02,9.71766881]
[1755878051329,8.79360891,195.06,195.02,9.71766881]
[1755878051533,0.66,195.05,195.04,9.71766881]
[1755878052031,8.13360891,195.06,195.04,9.71766881]
[1755878052218,8.13360891,195.06,195.05,9.71766881]
[1755878052533,8.79360891,195.06,194.99,26.0]
[1755878052734,0.66,195.05,195.02,9.71766881]
[1755878052937,0.66,195.05,195.03,9.71766881]
[1755878053110,0.66,195.04,195.03,9.71766881]
[1755878053318,0.66,195.04,195.02,9.71766881]
[1755878053631,0.66,195.04,195.0,26.0]
[1755878053936,0.66,195.04,195.03,9.71766881]
[1755878054322,8.13360891,195.06,195.0,26.0]
[1755878054512,8.13360891,195.06,195.04,9.71766881]
[1755878054717,8.13360891,195.06,195.05,9.71766881]
[1755878055223,8.79360891,195.06,194.99,26.0]
[1755878055434,8.79360891,195.06,195.03,9.71766881]
[1755878055752,0.66,195.05,195.01,9.71766881]
[1755878056063,8.13360891,195.06,195.01,9.71766881]
[1755878056215,0.66,195.05,195.02,9.71766881]
[1755878056416,8.13360891,195.06,195.02,9.71766881]
[1755878056645,0.66,195.05,195.02,9.71766881]
[1755878057233,0.72,195.05,194.98,26.0]
[1755878057445,0.72,195.05,195.01,9.71766881]
[1755878057919,0.72,195.04,195.01,9.71766881]
[1755878058124,8.13360891,195.06,195.02,9.71766881]
[1755878058534,0.72,195.05,195.01,9.71766881]
[1755878058719,0.72,195.05,195.02,9.71766881]
[1755878058916,0.72,195.05,194.98,26.0]
[1755878059136,0.72,195.05,195.02,9.71766881]
[1755878059339,0.72,195.05,195.01,9.71766881]
[1755878059643,0.72,195.05,194.98,26.0]
[1755878059836,0.72,195.05,195.02,9.71766881]
[1755878060151,9.71766881,195.03,194.98,79.8]
[1755878060324,9.71766881,195.01,194.96,89.54766881]
[1755878060528,9.71766881,195.01,194.96,0.03]
[1755878060529,9.71766881,194.97,194.96,0.03]
[1755878060736,10.43766881,195.0,194.96,0.03]
[1755878060960,0.72,195.0,194.96,0.03]
[1755878061253,0.28432314,195.01,194.96,0.03]
[1755878061447,9.71766881,195.0,194.96,0.03]
[1755878061654,1.00432314,195.01,194.97,9.71766881]
[1755878061836,42.82,195.02,194.97,9.71766881]
[1755878062149,0.72,195.01,194.96,0.03]
[1755878062453,1.00432314,195.04,195.0,9.71766881]
[1755878062633,8.13360891,195.06,195.02,9.71766881]
[1755878062959,8.85360891,195.06,195.02,9.71766881]
[1755878063139,0.72,195.05,194.96,26.62]
[1755878063459,0.72,195.05,195.01,9.71766881]
[1755878063660,9.71766881,195.03,194.96,26.03]
[1755878063871,9.71766881,194.99,194.96,0.03]
[1755878064332,10.00199195,195.0,194.96,0.03]
[1755878064650,0.72,195.0,194.96,0.03]
[1755878064864,0.72,195.0,194.96,9.74766881]
[1755878065066,42.82,195.01,194.96,0.03]
[1755878065240,0.28432314,195.03,194.98,26.0]
[1755878065439,0.72,195.02,194.98,35.71766881]
[1755878065640,0.72,195.01,194.98,26.0]
[1755878065941,0.72,195.0,194.97,9.71766881]
[1755878066376,10.43766881,194.99,194.96,0.03]
[1755878066575,10.43766881,194.99,194.96,26.03]
[1755878066883,0.72,194.98,194.96,26.03]
[1755878067059,0.72,194.97,194.96,26.03]
[1755878067240,10.43766881,194.97,194.96,0.03]
[1755878067441,10.72199195,194.97,194.96,0.03]
[1755878068045,1.00432314,194.97,194.96,0.03]
[1755878068441,52.53766881,194.98,194.96,0.03]
[1755878068442,42.82,194.98,194.96,0.03]
[1755878069066,0.72,194.97,194.96,0.03]
[1755878069243,42.82,194.98,194.96,79.83]
[1755878069567,0.72,194.97,194.96,0.03]
[1755878069773,10.43766881,194.97,194.96,0.03]
[1755878069954,0.72,194.97,194.96,0.03]
[1755878070155,42.82,194.98,194.96,0.03]
[1755878070564,43.10432314,194.99,194.96,0.03]
[1755878071067,43.82432314,194.99,194.96,0.03]
[1755878071380,52.82199195,194.99,194.96,0.03]
[1755878071578,0.72,194.98,194.96,0.03]
[1755878071747,43.82432314,194.99,194.96,0.03]
[1755878072075,43.10432314,194.99,194.96,0.03]
[1755878072247,43.82432314,194.99,194.96,0.03]
[1755878072448,0.72,194.98,194.96,0.03]
[1755878072670,43.10432314,194.99,194.96,0.03]
[1755878072877,10.21692757,195.05,195.0,26.0]
[1755878073082,10.21692757,195.05,195.02,9.71766881]
[1755878073254,9.85983038,195.03,195.0,26.0]
[1755878073448,0.72,195.02,194.98,35.71766881]
[1755878073654,0.86216157,195.02,194.98,26.0]
[1755878073961,10.00199195,195.0,194.96,0.03]
[1755878074164,9.71766881,194.97,194.96,0.03]
[1755878074388,53.25766881,194.99,194.96,0.03]
[1755878074548,43.54,194.99,194.96,0.03]
[1755878074749,42.82,194.99,194.96,0.03]
[1755878074949,10.43766881,194.98,194.96,0.03]
[1755878075247,0.28432314,194.95,194.92,0.03]
[1755878075461,13.59559401,194.96,194.92,0.03]
[1755878075462,0.28432314,194.93,194.92,0.03]
[1755878075876,43.54,194.94,194.92,0.03]
[1755878076051,42.82,194.94,194.92,0.03]
[1755878076251,42.82,194.94,194.92,9.74766881]
[1755878076482,42.82,194.95,194.93,9.71766881]
[1755878077186,42.82,194.95,194.94,9.71766881]
[1755878077355,42.82,194.95,194.92,0.03]
[1755878077356,0.28432314,194.94,194.92,0.03]
[1755878077555,1.00432314,194.94,194.92,0.03]
[1755878077752,0.72,194.93,194.92,0.03]
[1755878078779,10.72199195,194.93,194.92,0.03]
[1755878078979,0.28432314,194.92,194.91,0.03]
[1755878079168,24.31758596,194.92,194.91,0.03]
[1755878079362,13.87991715,194.91,194.89,0.03]
[1755878079675,13.87991715,194.91,194.81,0.03]
[1755878079676,0.28432314,194.88,194.81,0.03]
[1755878079866,10.00199195,194.86,194.81,9.74766881]
[1755878080058,43.10432314,194.86,194.81,9.74766881]
[1755878080390,43.10432314,194.86,194.83,9.71766881]
[1755878080565,0.28432314,194.88,194.85,9.74766881]
[1755878080757,52.82199195,194.86,194.85,0.03]
[1755878080955,66.41758596,194.86,194.85,0.03]
[1755878081166,67.13758596,194.86,194.85,0.03]
[1755878081491,24.31758596,194.86,194.85,0.03]
[1755878081661,43.10432314,194.86,194.85,0.03]
[1755878082061,57.41991715,194.86,194.85,0.03]
[1755878082959,43.10432314,194.86,194.85,0.03]
[1755878083885,24.03326282,194.89,194.85,0.03]
[1755878083886,14.31559401,194.89,194.85,9.74766881]
[1755878084199,42.82,194.86,194.85,9.74766881]
[1755878084685,42.82,194.86,194.85,0.03]
[1755878084878,67.13758596,194.86,194.85,0.03]
[1755878085788,13.87991715,194.85,194.81,0.03]
[1755878086001,10.00199195,194.82,194.81,0.03]
[1755878086287,52.82199195,194.82,194.81,0.03]
[1755878086483,53.54199195,194.82,194.81,0.03]
[1755878086690,57.41991715,194.82,194.81,0.03]
[1755878086987,67.13758596,194.82,194.81,0.03]
[1755878087184,0.28432314,194.81,194.73,1.17599925]
[1755878087399,61.22798248,194.82,194.67,3.99713976]
[1755878087400,0.28432314,194.78,194.67,3.99713976]
[1755878087694,3.80806533,194.77,194.76,9.71766881]
[1755878088086,3.80806533,194.77,194.64,13.66582795]
[1755878088284,3.80806533,194.76,194.74,9.71766881]
[1755878088491,3.80806533,194.75,194.65,0.28432314]
[1755878088684,3.80806533,194.74,194.65,0.28432314]
[1755878088879,3.80806533,194.73,194.64,18.77265177]
[1755878089079,3.80806533,194.72,194.64,18.77265177]
[1755878089382,3.80806533,194.71,194.67,26.0]
[1755878089591,42.82,194.77,194.67,26.0]
[1755878089592,3.80806533,194.7,194.67,26.0]
[1755878089804,42.82,194.77,194.72,26.0]
[1755878089973,3.80325978,194.76,194.69,105.8]
[1755878090177,3.80329123,194.75,194.69,105.8]
[1755878090389,3.80329123,194.74,194.69,105.8]
[1755878090622,3.80329123,194.73,194.69,105.8]
[1755878090772,3.80329123,194.72,194.71,26.0]
[1755878091390,3.80329123,194.72,194.71,0.08]
[1755878091573,3.80329123,194.72,194.71,9.79766881]
[1755878091779,3.80329123,194.72,194.71,9.71766881]
[1755878092673,3.80329123,194.72,194.71,35.71766881]
[1755878092900,3.80329123,194.72,194.71,35.79766881]
[1755878093291,0.69,194.8,194.71,22.94663432]
[1755878093489,3.79739304,194.79,194.71,93.02896551]
[1755878093785,13.87991715,194.79,194.71,93.02896551]
[1755878094605,13.87991715,194.79,194.78,9.71766881]
[1755878094900,14.56991715,194.79,194.71,92.94896551]
[1755878095103,14.56991715,194.79,194.76,9.71766881]
[1755878095315,0.69,194.78,194.75,9.71766881]
[1755878095522,23.59758596,194.79,194.74,9.71766881]
[1755878095808,23.59758596,194.79,194.71,92.94896551]
[1755878095809,13.87991715,194.76,194.71,92.94896551]
[1755878096011,13.87991715,194.76,194.71,13.14896551]
[1755878096176,13.87991715,194.76,194.75,9.71766881]
[1755878096815,14.56991715,194.76,194.75,9.71766881]
[1755878097181,13.87991715,194.76,194.71,13.14896551]
[1755878097388,13.87991715,194.76,194.75,9.71766881]
[1755878097608,13.87991715,194.75,194.71,13.14896551]
[1755878097807,0.28432314,194.75,194.74,9.71766881]
[1755878098009,0.28432314,194.75,194.71,79.8]
[1755878098576,42.82,194.77,194.65,42.82]
[1755878098577,0.28432314,194.72,194.65,42.82]
[1755878098699,0.28432314,194.72,194.7,9.71766881]
[1755878098888,13.87991715,194.71,194.7,9.71766881]
[1755878099794,13.87991715,194.71,194.69,9.71766881]
[1755878099795,0.28432314,194.7,194.69,9.71766881]
[1755878100387,42.82,194.71,194.69,9.71766881]